[Event "RUS-ch Men Blitz 2019"]
[Site "Sochi"]
[Date "2019.10.17"]
[Round "1.20"]
[White "Khmelev, Mikhail"]
[Black "Antipov, Mikhail Al."]
[Result "0-1"]
[ECO "B30"]
[WhiteElo "2082"]
[BlackElo "2567"]
[Annotator "ChessBase"]
[PlyCount "72"]
[EventDate "2019.10.17"]
[EventType "swiss"]
[EventCountry "RUS"]
[SourceTitle "playchess.com"]
[Source "ChessBase"]
[SourceQuality "1"]
[TimeControl "180+2"]

1. e4 {[%emt 0:00:00]} c5 {[%emt 0:00:00]} 2. Nf3 {[%emt 0:00:00]} Nc6 {[%emt 0:00:00]} 3. Bb5 {[%emt 0:00:03]} d6 {[%emt 0:00:00]} 4. O-O {[%emt 0:00:05]} Bd7 {[%emt 0:00:01]} 5. c3 {[%emt 0:00:01]} a6 {[%emt 0:00:01]} 6. Bxc6 {[%emt 0:00:04]} Bxc6 {[%emt 0:00:01]} 7. Re1 {[%emt 0:00:00]} Nf6 {[%emt 0:00:01]} 8. e5 {[%emt 0:00:06]} dxe5 {[%emt 0:00:16]} 9. Nxe5 {[%emt 0:00:01]} Qd5 {[%emt 0:00:01]} 10. Nxc6 {[%emt 0:00:04]} Qxc6 {[%emt 0:00:01]} 11. Na3 {[%emt 0:00:04]} e6 {[%emt 0:00:22]} 12. Nc4 {[%emt 0:00:01]} Bd6 {[%emt 0:00:01]} 13. d4 {[%emt 0:00:11]} cxd4 {[%emt 0:00:29]} 14. Qxd4 {[%emt 0:00:06]} Rd8 {[%emt 0:00:02]} 15. Qh4 {[%emt 0:00:11]} O-O {[%emt 0:00:16]} 16. Nxd6 {[%emt 0:00:02]} Rxd6 {[%emt 0:00:01]} 17. Bf4 {[%emt 0:00:02]} Rd5 {[%emt 0:00:04]} 18. Be5 {[%emt 0:00:10]} Nd7 {[%emt 0:00:05]} 19. Bd4 {[%emt 0:00:01]} Qd6 {[%emt 0:00:20]} 20. Qg3 {[%emt 0:00:20]} e5 21. Be3 f5 {[%emt 0:00:12]} 22. f4 {[%emt 0:00:21]} e4 {[%emt 0:00:01]} 23. Bd4 {[%emt 0:00:06]} Rf7 {[%emt 0:00:00]} 24. Rad1 {[%emt 0:00:02]} Nc5 {[%emt 0:00:21]} 25. Be5 {[%emt 0:00:38]} Qd7 {[%emt 0:00:12]} 26. Rxd5 {[%emt 0:00:05]} Qxd5 {[%emt 0:00:01]} 27. Qe3 {[%emt 0:00:01]} Nd3 {[%emt 0:00:10]} 28. Rd1 {[%emt 0:00:17]} Qxa2 {[%emt 0:00:02]} 29. Qb6 {[%emt 0:00:03]} h6 {[%emt 0:00:11]} 30. Rf1 {[%emt 0:00:32]} Qxb2 {[%emt 0:00:10]} 31. Qd8+ {[%emt 0:00:00]} Kh7 {[%emt 0:00:01]} 32. Qd5 {[%emt 0:00:06]} Qb6+ {[%emt 0:00:01]} 33. Bd4 {[%emt 0:00:03]} Qg6 {[%emt 0:00:02]} 34. h4 {[%emt 0:00:05]} h5 {[%emt 0:00:05]} 35. Rb1 {[%emt 0:00:01]} Nxf4 {[%emt 0:00:03]} 36. Rb2 {[%emt 0:00:06]} Nxd5 {[%emt 0:00:02]} 0-1

[Event "RUS-ch Men Blitz 2019"]
[Site "Sochi"]
[Date "2019.10.17"]
[Round "1.22"]
[White "Abramov, Ilya"]
[Black "Popov, Valerij"]
[Result "0-1"]
[ECO "D31"]
[WhiteElo "2119"]
[BlackElo "2535"]
[Annotator "ChessBase"]
[PlyCount "36"]
[EventDate "2019.10.17"]
[EventType "swiss"]
[EventCountry "RUS"]
[SourceTitle "playchess.com"]
[Source "ChessBase"]
[SourceQuality "1"]
[TimeControl "180+2"]

1. d4 {[%emt 0:00:00]} d5 {[%emt 0:00:00]} 2. c4 {[%emt 0:00:00]} e6 {[%emt 0:00:00]} 3. Nc3 {[%emt 0:00:01]} c6 {[%emt 0:00:02]} 4. cxd5 {[%emt 0:00:03]} exd5 {[%emt 0:00:01]} 5. Nf3 {[%emt 0:00:02]} Bf5 {[%emt 0:00:02]} 6. Qb3 {[%emt 0:00:04]} Qb6 {[%emt 0:00:02]} 7. Qxb6 {[%emt 0:00:17]} axb6 {[%emt 0:00:01]} 8. Bd2 {[%emt 0:00:07]} Nd7 {[%emt 0:00:04]} 9. e3 {[%emt 0:00:01]} b5 {[%emt 0:00:10]} 10. Nh4 {[%emt 0:00:11]} Be6 {[%emt 0:00:04]} 11. Bd3 {[%emt 0:00:02]} Nb6 {[%emt 0:00:08]} 12. Ke2 {[%emt 0:00:21]} Nf6 {[%emt 0:00:12]} 13. Rhb1 {[%emt 0:00:48]} g6 {[%emt 0:00:25]} 14. Nf3 {[%emt 0:00:02]} h6 {[%emt 0:00:10]} 15. e4 {[%emt 0:00:14]} b4 {[%emt 0:00:05]} 16. e5 {[%emt 0:00:16]} bxc3 {[%emt 0:00:02]} 17. bxc3 {[%emt 0:00:01]} Nfd7 {[%emt 0:00:01]} 18. a4 {[%emt 0:00:08]} Ra7 {[%emt 0:00:05]} 0-1

[Event "RUS-ch Men Blitz 2019"]
[Site "Sochi"]
[Date "2019.10.17"]
[Round "1.23"]
[White "Iljin, Artem"]
[Black "Kulik, Artur"]
[Result "1-0"]
[ECO "A09"]
[WhiteElo "2509"]
[BlackElo "2014"]
[Annotator "ChessBase"]
[PlyCount "87"]
[EventDate "2019.10.17"]
[EventType "swiss"]
[EventCountry "RUS"]
[SourceTitle "playchess.com"]
[Source "ChessBase"]
[SourceQuality "1"]
[TimeControl "180+2"]

1. Nf3 {[%emt 0:00:00]} d5 {[%emt 0:00:00]} 2. c4 {[%emt 0:00:01]} d4 {[%emt 0:00:00]} 3. g3 {[%emt 0:00:04]} c5 {[%emt 0:00:02]} 4. Bg2 {[%emt 0:00:01]} Nc6 {[%emt 0:00:02]} 5. O-O {[%emt 0:00:04]} Nf6 {[%emt 0:00:02]} 6. d3 {[%emt 0:00:04]} g6 {[%emt 0:00:04]} 7. e3 {[%emt 0:00:11]} Bg7 {[%emt 0:00:09]} 8. exd4 {[%emt 0:00:03]} cxd4 {[%emt 0:00:02]} 9. Re1 {[%emt 0:00:03]} O-O {[%emt 0:00:08]} 10. Na3 {[%emt 0:00:13]} Nd7 {[%emt 0:00:18]} 11. Nc2 {[%emt 0:00:21]} a5 {[%emt 0:00:21]} 12. b3 {[%emt 0:00:09]} Nc5 {[%emt 0:00:17]} 13. Ba3 {[%emt 0:00:02]} Qb6 {[%emt 0:00:36]} 14. Bxc5 {[%emt 0:00:12]} Qxc5 {[%emt 0:00:02]} 15. a3 {[%emt 0:00:01]} Bf5 {[%emt 0:00:33]} 16. Qd2 {[%emt 0:00:14]} e5 {[%emt 0:00:15]} 17. b4 {[%emt 0:00:08]} axb4 {[%emt 0:00:07]} 18. axb4 {[%emt 0:00:01]} Qd6 {[%emt 0:00:05]} 19. c5 {[%emt 0:01:07]} Qc7 {[%emt 0:00:08]} 20. Na3 {[%emt 0:00:06]} Rfd8 {[%emt 0:00:18]} 21. Nb5 {[%emt 0:00:06]} Qe7 {[%emt 0:00:02]} 22. Nd6 {[%emt 0:00:04]} Rxa1 {[%emt 0:00:02]} 23. Rxa1 {[%emt 0:00:01]} Rxd6 {[%emt 0:00:02]} 24. cxd6 {[%emt 0:00:01]} Qxd6 {[%emt 0:00:01]} 25. b5 {[%emt 0:00:03]} Nd8 {[%emt 0:00:03]} 26. Ra8 {[%emt 0:00:06]} Bf6 {[%emt 0:00:02]} 27. Ng5 {[%emt 0:00:10]} b6 {[%emt 0:00:06]} 28. Ne4 {[%emt 0:00:02]} Bxe4 {[%emt 0:00:02]} 29. Bxe4 {[%emt 0:00:01]} Kg7 {[%emt 0:00:01]} 30. h4 {[%emt 0:00:07]} Ne6 {[%emt 0:00:00]} 31. Qc2 {[%emt 0:00:08]} Nc5 {[%emt 0:00:01]} 32. Bg2 {[%emt 0:00:02]} Be7 {[%emt 0:00:02]} 33. Qc4 {[%emt 0:00:01]} Qe6 {[%emt 0:00:06]} 34. Qxe6 {[%emt 0:00:07]} Nxe6 {[%emt 0:00:04]} 35. Rb8 {[%emt 0:00:01]} Bc5 {[%emt 0:00:03]} 36. Bd5 {[%emt 0:00:01]} Nc7 {[%emt 0:00:01]} 37. Bc4 {[%emt 0:00:01]} f5 {[%emt 0:00:02]} 38. Rb7 {[%emt 0:00:01]} Bd6 {[%emt 0:00:00]} 39. Rxb6 {[%emt 0:00:01]} Ne8 {[%emt 0:00:04]} 40. Rc6 {[%emt 0:00:01]} Kf8 {[%emt 0:00:02]} 41. b6 {[%emt 0:00:01]} Ke7 {[%emt 0:00:01]} 42. b7 {[%emt 0:00:01]} Bb8 {[%emt 0:00:01]} 43. Rc8 {[%emt 0:00:02]} Ba7 {[%emt 0:00:04]} 44. Ra8 {[%emt 0:00:01]} 1-0

[Event "RUS-ch Men Blitz 2019"]
[Site "Sochi"]
[Date "2019.10.17"]
[Round "1.26"]
[White "Ivanov, Dmitry S."]
[Black "Drygalov, Andrey"]
[Result "0-1"]
[ECO "A45"]
[WhiteElo "2172"]
[BlackElo "2484"]
[Annotator "RC"]
[PlyCount "64"]
[EventDate "2019.10.17"]
[EventType "swiss"]
[EventCountry "RUS"]
[SourceTitle "playchess.com"]
[Source "ChessBase"]
[SourceQuality "1"]
[TimeControl "180+2"]

1. d4 {[%emt 0:00:00]} Nf6 {[%emt 0:00:00]} 2. Bg5 {[%emt 0:00:00]} d5 {[%emt 0:00:00]} 3. e3 {[%emt 0:00:01]} c5 {[%emt 0:00:00]} 4. Nd2 {[%emt 0:00:02]} Nc6 {[%emt 0:00:03]} 5. c3 {[%emt 0:00:02]} e6 {[%emt 0:00:08]} 6. f4 {[%emt 0:00:01]} Qb6 {[%emt 0:00:08]} 7. Rb1 {[%emt 0:00:04]} cxd4 {[%emt 0:00:14]} 8. exd4 {[%emt 0:00:03]} Bd6 {[%emt 0:00:03]} 9. Ngf3 {[%emt 0:00:04]} h6 {[%emt 0:00:01]} 10. Bxf6 {[%emt 0:00:01]} gxf6 {[%emt 0:00:01]} 11. g3 {[%emt 0:00:12]} Bd7 {[%emt 0:00:29]} 12. Bg2 {[%emt 0:00:05]} O-O-O {[%emt 0:00:16]} 13. O-O {[%emt 0:00:01]} e5 {[%emt 0:00:00]} 14. fxe5 {[%emt 0:00:15]} fxe5 {[%emt 0:00:01]} 15. Kh1 {[%emt 0:00:02]} e4 {[%emt 0:00:06]} 16. Nh4 {[%emt 0:00:06]} Be6 {[%emt 0:00:01]} 17. b4 {[%emt 0:00:06]} Qb5 {[%emt 0:00:31]} 18. Re1 {[%emt 0:00:13]} f5 {[%emt 0:00:03]} 19. Bf1 {[%emt 0:00:03]} Qb6 {[%emt 0:00:01]} 20. Bh3 {[%emt 0:00:09]} Ne7 {[%emt 0:00:02]} 21. a4 {[%emt 0:00:11]} Kb8 {[%emt 0:00:05]} 22. Nb3 {[%emt 0:00:03]} Qc7 {[%emt 0:00:21]} 23. Nc5 {[%emt 0:00:04]} Bc8 {[%emt 0:00:00]} 24. a5 {[%emt 0:00:10]} Bxg3 {[%emt 0:00:02]} 25. hxg3 {[%emt 0:00:20]} Qxg3 {[%emt 0:00:00]} 26. Rb2 {[%emt 0:00:29]} Qxh3+ {[%emt 0:00:12]} 27. Rh2 {[%emt 0:00:01]} Qxc3 {[%emt 0:00:03]} 28. Ng2 {[%emt 0:00:08]} Nc6 {[%emt 0:00:05]} 29. Nf4 {[%emt 0:00:09]} Qxd4 {[%emt 0:00:04]} 30. Qe2 {[%emt 0:00:11]} Qc4 {[%emt 0:00:13]} 31. Qb2 {[%emt 0:00:11]} Qxb4 {[%emt 0:00:03]} 32. Qc2 {[%emt 0:00:07]} Qxe1+ {[%emt 0:00:01]} 0-1

[Event "RUS-ch Men Blitz 2019"]
[Site "Sochi"]
[Date "2019.10.17"]
[Round "1.28"]
[White "Kryzhanovskiy, Mikhail"]
[Black "Lugovskoy, Maxim"]
[Result "0-1"]
[ECO "D37"]
[WhiteElo "2064"]
[BlackElo "2436"]
[Annotator "NA"]
[PlyCount "80"]
[EventDate "2019.10.17"]
[EventType "swiss"]
[EventCountry "RUS"]
[SourceTitle "playchess.com"]
[Source "ChessBase"]
[SourceQuality "1"]
[TimeControl "180+2"]

1. Nf3 {[%emt 0:00:00]} d5 {[%emt 0:00:00]} 2. c4 {[%emt 0:00:00]} e6 {[%emt 0:00:00]} 3. d4 {[%emt 0:00:01]} Nf6 {[%emt 0:00:00]} 4. Nc3 {[%emt 0:00:01]} a6 {[%emt 0:00:03]} 5. a4 {[%emt 0:00:04]} c6 {[%emt 0:00:08]} 6. e3 {[%emt 0:00:07]} Ne4 {[%emt 0:00:03]} 7. Qc2 {[%emt 0:00:13]} f5 {[%emt 0:00:01]} 8. g3 {[%emt 0:00:12]} Bd6 {[%emt 0:00:01]} 9. Bg2 {[%emt 0:00:01]} O-O {[%emt 0:00:01]} 10. O-O {[%emt 0:00:03]} Nd7 {[%emt 0:00:01]} 11. a5 {[%emt 0:00:10]} Ndf6 {[%emt 0:00:01]} 12. b3 {[%emt 0:00:11]} Nxc3 {[%emt 0:00:02]} 13. Qxc3 {[%emt 0:00:02]} Ne4 {[%emt 0:00:00]} 14. Qc2 {[%emt 0:00:03]} Qe7 {[%emt 0:00:01]} 15. Ne5 {[%emt 0:00:18]} Bd7 {[%emt 0:00:01]} 16. Bb2 {[%emt 0:00:10]} Be8 {[%emt 0:00:01]} 17. Qc1 {[%emt 0:00:21]} Rc8 {[%emt 0:00:29]} 18. Ba3 {[%emt 0:00:14]} c5 {[%emt 0:00:01]} 19. Qb2 {[%emt 0:00:23]} Bh5 {[%emt 0:00:17]} 20. cxd5 {[%emt 0:00:07]} exd5 {[%emt 0:00:01]} 21. Nd3 {[%emt 0:00:12]} c4 {[%emt 0:00:02]} 22. Bxd6 {[%emt 0:00:03]} Qxd6 {[%emt 0:00:26]} 23. bxc4 {[%emt 0:00:01]} dxc4 {[%emt 0:00:01]} 24. Nf4 {[%emt 0:00:02]} Bf7 {[%emt 0:00:04]} 25. Qxb7 {[%emt 0:00:02]} c3 {[%emt 0:00:04]} 26. Rfc1 {[%emt 0:00:08]} Rb8 {[%emt 0:00:07]} 27. Qa7 {[%emt 0:00:02]} Rfc8 {[%emt 0:00:02]} 28. Nd3 {[%emt 0:00:11]} Bd5 {[%emt 0:00:01]} 29. Nc5 {[%emt 0:00:05]} Nxc5 {[%emt 0:00:48]} 30. Bxd5+ {[%emt 0:00:02]} Qxd5 {[%emt 0:00:04]} 31. dxc5 {[%emt 0:00:02]} Qc6 {[%emt 0:00:07]} 32. Rab1 {[%emt 0:00:14]} Rxb1 {[%emt 0:00:15]} 33. Rxb1 {[%emt 0:00:01]} c2 {[%emt 0:00:01]} 34. Rc1 {[%emt 0:00:01]} Qxc5 {[%emt 0:00:01]} 35. Qxa6 {[%emt 0:00:09]} h6 {[%emt 0:00:13]} 36. Qe6+ {[%emt 0:00:01]} Kh8 {[%emt 0:00:03]} 37. a6 {[%emt 0:00:01]} Rd8 {[%emt 0:00:07]} 38. Kg2 {[%emt 0:00:10]} Rd2 {[%emt 0:00:12]} 39. Qe8+ Kh7 40. Qa4 {[%emt 0:00:09]} Qxe3 {[%emt 0:00:06]} 0-1

[Event "RUS-ch Men Blitz 2019"]
[Site "Sochi"]
[Date "2019.10.17"]
[Round "1.30"]
[White "Levonyan, Karen"]
[Black "Potapov, Pavel"]
[Result "0-1"]
[ECO "A01"]
[WhiteElo "2010"]
[BlackElo "2489"]
[Annotator "RC"]
[PlyCount "108"]
[EventDate "2019.10.17"]
[EventType "swiss"]
[EventCountry "RUS"]
[SourceTitle "playchess.com"]
[Source "ChessBase"]
[SourceQuality "1"]
[TimeControl "180+2"]

1. b3 {[%emt 0:00:00]} e5 {[%emt 0:00:00]} 2. Bb2 {[%emt 0:00:01]} Nc6 {[%emt 0:00:01]} 3. e3 {[%emt 0:00:02]} d6 {[%emt 0:00:02]} 4. c4 {[%emt 0:00:15]} g6 {[%emt 0:00:03]} 5. d3 {[%emt 0:00:07]} Bg7 {[%emt 0:00:01]} 6. g3 {[%emt 0:00:02]} f5 {[%emt 0:00:03]} 7. Bg2 {[%emt 0:00:02]} Nf6 {[%emt 0:00:01]} 8. Nf3 {[%emt 0:00:11]} O-O {[%emt 0:00:03]} 9. O-O {[%emt 0:00:02]} h6 {[%emt 0:00:01]} 10. Nc3 {[%emt 0:00:15]} g5 {[%emt 0:00:03]} 11. e4 {[%emt 0:00:12]} f4 {[%emt 0:00:05]} 12. Nd5 {[%emt 0:00:22]} g4 {[%emt 0:00:06]} 13. Nd2 {[%emt 0:00:37]} f3 {[%emt 0:00:02]} 14. Bh1 {[%emt 0:00:02]} Nd4 {[%emt 0:00:07]} 15. Re1 {[%emt 0:00:11]} c6 {[%emt 0:00:07]} 16. Nxf6+ {[%emt 0:00:07]} Qxf6 {[%emt 0:00:02]} 17. Nf1 {[%emt 0:00:03]} h5 {[%emt 0:00:15]} 18. h4 {[%emt 0:00:29]} Be6 {[%emt 0:00:07]} 19. Ne3 {[%emt 0:00:08]} Bh6 {[%emt 0:00:02]} 20. Nc2 {[%emt 0:00:02]} c5 {[%emt 0:00:46]} 21. Nxd4 {[%emt 0:00:04]} exd4 {[%emt 0:00:10]} 22. Bc1 {[%emt 0:00:01]} Rab8 {[%emt 0:00:13]} 23. a4 {[%emt 0:00:01]} b6 {[%emt 0:00:02]} 24. Bd2 {[%emt 0:00:02]} a6 {[%emt 0:00:03]} 25. Qc1 {[%emt 0:00:01]} Kh7 {[%emt 0:00:12]} 26. Ra2 {[%emt 0:00:03]} Rf7 {[%emt 0:00:03]} 27. Kh2 {[%emt 0:00:03]} Re7 {[%emt 0:00:08]} 28. Bf4 {[%emt 0:00:01]} Bg8 {[%emt 0:00:09]} 29. Qd2 {[%emt 0:00:04]} Bxf4 {[%emt 0:00:15]} 30. Qxf4 {[%emt 0:00:01]} Qe5 {[%emt 0:00:01]} 31. a5 {[%emt 0:00:05]} b5 {[%emt 0:00:02]} 32. Rc1 {[%emt 0:00:07]} bxc4 {[%emt 0:00:04]} 33. bxc4 {[%emt 0:00:01]} Rf7 {[%emt 0:00:05]} 34. Qd2 {[%emt 0:00:03]} Rb4 {[%emt 0:00:11]} 35. Rcc2 {[%emt 0:00:01]} Rfb7 {[%emt 0:00:02]} 36. Rcb2 {[%emt 0:00:00]} Kg6 {[%emt 0:00:10]} 37. Rxb4 {[%emt 0:00:02]} cxb4 {[%emt 0:00:01]} 38. Rb2 {[%emt 0:00:05]} Qxa5 {[%emt 0:00:02]} 39. Qf4 {[%emt 0:00:01]} Qe5 {[%emt 0:00:07]} 40. Qf8 {[%emt 0:00:00]} Bf7 {[%emt 0:00:04]} 41. Ra2 {[%emt 0:00:01]} a5 {[%emt 0:00:03]} 42. Qd8 {[%emt 0:00:02]} Ra7 {[%emt 0:00:07]} 43. Qb8 {[%emt 0:00:01]} Qc5 {[%emt 0:00:02]} 44. Bxf3 {[%emt 0:00:06]} gxf3 {[%emt 0:00:01]} 45. g4 {[%emt 0:00:00]} hxg4 {[%emt 0:00:02]} 46. Kg1 {[%emt 0:00:05]} a4 {[%emt 0:00:01]} 47. Qh8 {[%emt 0:00:02]} b3 {[%emt 0:00:02]} 48. h5+ {[%emt 0:00:01]} Qxh5 {[%emt 0:00:01]} 49. Qb8 {[%emt 0:00:04]} Qc5 {[%emt 0:00:02]} 50. Ra1 {[%emt 0:00:02]} Ra5 {[%emt 0:00:05]} 51. Qd8 {[%emt 0:00:06]} a3 {[%emt 0:00:05]} 52. Qd7 {[%emt 0:00:02]} b2 {[%emt 0:00:02]} 53. Rb1 {[%emt 0:00:10]} a2 {[%emt 0:00:01]} 54. Qxg4+ {[%emt 0:00:03]} Qg5 {[%emt 0:00:01]} 0-1

[Event "RUS-ch Men Blitz 2019"]
[Site "Sochi"]
[Date "2019.10.20"]
[Round "2.2"]
[White "Yuffa, Daniil"]
[Black "Vakhlamov, Igor L."]
[Result "1-0"]
[ECO "E01"]
[WhiteElo "2577"]
[BlackElo "2428"]
[Annotator "ChessBase"]
[PlyCount "88"]
[EventDate "2019.10.17"]
[EventType "swiss"]
[EventCountry "RUS"]
[SourceTitle "playchess.com"]
[Source "ChessBase"]
[SourceQuality "1"]
[TimeControl "180+2"]

1. d4 {[%emt 0:00:00]} Nf6 {[%emt 0:00:00]} 2. c4 {[%emt 0:00:01]} e6 {[%emt 0:00:00]} 3. g3 {[%emt 0:00:01]} d5 {[%emt 0:00:01]} 4. Bg2 {[%emt 0:00:01]} Bb4+ {[%emt 0:00:02]} 5. Bd2 {[%emt 0:00:01]} Be7 {[%emt 0:00:00]} 6. Nf3 {[%emt 0:00:01]} O-O {[%emt 0:00:02]} 7. O-O {[%emt 0:00:02]} Nbd7 {[%emt 0:00:01]} 8. Nc3 {[%emt 0:00:02]} dxc4 {[%emt 0:00:03]} 9. e4 {[%emt 0:00:01]} c5 {[%emt 0:00:10]} 10. Bf4 {[%emt 0:00:06]} Nb6 {[%emt 0:00:13]} 11. a4 {[%emt 0:00:04]} cxd4 {[%emt 0:00:26]} 12. Qxd4 {[%emt 0:00:01]} Qxd4 {[%emt 0:00:09]} 13. Nxd4 {[%emt 0:00:02]} Nbd7 {[%emt 0:00:36]} 14. Nf3 {[%emt 0:00:52]} Nc5 {[%emt 0:00:05]} 15. Ne5 {[%emt 0:00:11]} Bd7 {[%emt 0:00:12]} 16. Nxc4 {[%emt 0:00:03]} Bc6 {[%emt 0:00:33]} 17. Na5 {[%emt 0:00:02]} Nd3 {[%emt 0:00:39]} 18. Be3 {[%emt 0:00:41]} Nxb2 {[%emt 0:00:14]} 19. Rab1 {[%emt 0:00:03]} Nd3 {[%emt 0:00:06]} 20. Nxb7 {[%emt 0:00:31]} Rac8 {[%emt 0:00:01]} 21. Rfd1 {[%emt 0:00:10]} Ne5 {[%emt 0:00:02]} 22. Nd6 {[%emt 0:00:10]} Bxd6 {[%emt 0:00:01]} 23. Rxd6 {[%emt 0:00:01]} Nc4 {[%emt 0:00:02]} 24. Rd3 {[%emt 0:00:06]} Nxe3 {[%emt 0:00:05]} 25. Rxe3 {[%emt 0:00:01]} Ng4 {[%emt 0:00:01]} 26. Ree1 {[%emt 0:00:07]} Ne5 {[%emt 0:00:02]} 27. f4 {[%emt 0:00:11]} Nc4 {[%emt 0:00:01]} 28. Nb5 {[%emt 0:00:03]} Bxb5 {[%emt 0:00:02]} 29. axb5 {[%emt 0:00:01]} Rfd8 {[%emt 0:00:03]} 30. e5 {[%emt 0:00:02]} g6 {[%emt 0:00:01]} 31. Rbc1 {[%emt 0:00:04]} Nb6 {[%emt 0:00:02]} 32. Rc6 {[%emt 0:00:02]} Nd5 {[%emt 0:00:04]} 33. Bxd5 {[%emt 0:00:06]} exd5 {[%emt 0:00:01]} 34. Ra1 {[%emt 0:00:07]} Rxc6 {[%emt 0:00:02]} 35. bxc6 {[%emt 0:00:01]} Rc8 {[%emt 0:00:02]} 36. Ra6 {[%emt 0:00:01]} Kf8 {[%emt 0:00:03]} 37. Kf2 {[%emt 0:00:01]} Rc7 {[%emt 0:00:03]} 38. Ke3 Ke7 39. Kd4 {[%emt 0:00:03]} Ke6 {[%emt 0:00:01]} 40. g4 {[%emt 0:00:01]} h6 {[%emt 0:00:04]} 41. f5+ {[%emt 0:00:04]} gxf5 {[%emt 0:00:01]} 42. gxf5+ {[%emt 0:00:00]} Kxf5 {[%emt 0:00:01]} 43. Kxd5 {[%emt 0:00:01]} Re7 {[%emt 0:00:04]} 44. Kd6 {[%emt 0:00:04]} Rxe5 {[%emt 0:00:07]} 1-0

[Event "RUS-ch Men Blitz 2019"]
[Site "Sochi"]
[Date "2019.10.17"]
[Round "2.2"]
[White "Tsydypov, Zhamsaran"]
[Black "Dudin, Gleb"]
[Result "1-0"]
[ECO "B06"]
[WhiteElo "2553"]
[BlackElo "2314"]
[Annotator "ChessBase"]
[PlyCount "75"]
[EventDate "2019.10.17"]
[EventType "swiss"]
[EventCountry "RUS"]
[SourceTitle "playchess.com"]
[Source "ChessBase"]
[SourceQuality "1"]
[TimeControl "180+2"]

1. e4 {[%emt 0:00:00]} g6 {[%emt 0:00:00]} 2. d4 {[%emt 0:00:01]} Bg7 {[%emt 0:00:01]} 3. Nc3 {[%emt 0:00:01]} d6 {[%emt 0:00:01]} 4. Be3 {[%emt 0:00:02]} a6 {[%emt 0:00:01]} 5. Qd2 {[%emt 0:00:02]} b5 {[%emt 0:00:01]} 6. h4 {[%emt 0:00:05]} h5 {[%emt 0:00:03]} 7. f3 {[%emt 0:00:02]} Bb7 {[%emt 0:00:01]} 8. Nh3 {[%emt 0:00:02]} Nd7 {[%emt 0:00:02]} 9. Ng5 {[%emt 0:00:18]} e6 {[%emt 0:00:14]} 10. O-O-O {[%emt 0:00:16]} Qe7 {[%emt 0:00:10]} 11. d5 {[%emt 0:00:06]} Ne5 {[%emt 0:00:40]} 12. Bd4 {[%emt 0:00:16]} Nf6 {[%emt 0:00:40]} 13. dxe6 {[%emt 0:00:13]} fxe6 {[%emt 0:00:02]} 14. Bxe5 {[%emt 0:00:13]} dxe5 {[%emt 0:00:02]} 15. g3 {[%emt 0:00:01]} Nh7 {[%emt 0:00:10]} 16. Nxh7 {[%emt 0:00:12]} Rxh7 {[%emt 0:00:02]} 17. Kb1 {[%emt 0:00:00]} Rd8 {[%emt 0:00:18]} 18. Bd3 {[%emt 0:00:09]} Bh6 {[%emt 0:00:18]} 19. Qg2 {[%emt 0:00:08]} Be3 {[%emt 0:00:13]} 20. g4 {[%emt 0:00:03]} hxg4 {[%emt 0:00:21]} 21. Qxg4 {[%emt 0:00:02]} Qf6 {[%emt 0:00:09]} 22. h5 {[%emt 0:00:14]} g5 {[%emt 0:00:09]} 23. a4 {[%emt 0:00:09]} c6 {[%emt 0:00:03]} 24. Be2 {[%emt 0:00:20]} Rxd1+ {[%emt 0:00:04]} 25. Rxd1 {[%emt 0:00:02]} Rd7 {[%emt 0:00:02]} 26. Rxd7 {[%emt 0:00:15]} Kxd7 {[%emt 0:00:00]} 27. axb5 {[%emt 0:00:01]} cxb5 {[%emt 0:00:04]} 28. Nd5 {[%emt 0:00:01]} Bxd5 {[%emt 0:00:02]} 29. exd5 {[%emt 0:00:01]} Kd6 {[%emt 0:00:01]} 30. Qe4 {[%emt 0:00:09]} Bc5 {[%emt 0:00:02]} 31. dxe6 {[%emt 0:00:04]} Qxe6 {[%emt 0:00:01]} 32. Qb7 {[%emt 0:00:04]} Qh3 {[%emt 0:00:04]} 33. Qxa6+ {[%emt 0:00:03]} Ke7 {[%emt 0:00:02]} 34. Qxb5 {[%emt 0:00:05]} Bd6 {[%emt 0:00:02]} 35. Qb7+ {[%emt 0:00:01]} Kf6 {[%emt 0:00:02]} 36. Bc4 {[%emt 0:00:02]} Qxh5 {[%emt 0:00:01]} 37. Qd7 {[%emt 0:00:05]} Qh1+ {[%emt 0:00:03]} 38. Ka2 {[%emt 0:00:02]} 1-0

[Event "RUS-ch Men Blitz 2019"]
[Site "Sochi"]
[Date "2019.10.20"]
[Round "2.3"]
[White "Tsoi, Dmitry"]
[Black "Khismatullin, Denis"]
[Result "0-1"]
[ECO "A02"]
[WhiteElo "2323"]
[BlackElo "2611"]
[Annotator "ChessBase"]
[PlyCount "74"]
[EventDate "2019.10.17"]
[EventType "swiss"]
[EventCountry "RUS"]
[SourceTitle "playchess.com"]
[Source "ChessBase"]
[SourceQuality "1"]
[TimeControl "180+2"]

1. f4 {[%emt 0:00:00]} c5 {[%emt 0:00:00]} 2. Nf3 {[%emt 0:00:00]} g6 {[%emt 0:00:02]} 3. g3 {[%emt 0:00:01]} Bg7 {[%emt 0:00:00]} 4. Bg2 Nc6 5. O-O {[%emt 0:00:02]} d6 {[%emt 0:00:01]} 6. d3 {[%emt 0:00:01]} e5 {[%emt 0:00:01]} 7. c3 {[%emt 0:00:05]} Nge7 {[%emt 0:00:03]} 8. e4 {[%emt 0:00:01]} O-O {[%emt 0:00:04]} 9. f5 {[%emt 0:00:01]} gxf5 {[%emt 0:00:01]} 10. Nh4 {[%emt 0:00:00]} fxe4 {[%emt 0:00:23]} 11. dxe4 {[%emt 0:00:02]} f6 {[%emt 0:00:13]} 12. Na3 {[%emt 0:00:09]} Be6 {[%emt 0:00:03]} 13. Nc2 {[%emt 0:00:03]} d5 {[%emt 0:00:11]} 14. exd5 {[%emt 0:00:01]} Bxd5 {[%emt 0:00:03]} 15. Bh3 {[%emt 0:00:11]} Bc4 {[%emt 0:00:15]} 16. Ne3 {[%emt 0:00:25]} Bxf1 {[%emt 0:00:31]} 17. Qxf1 {[%emt 0:00:02]} e4 {[%emt 0:00:12]} 18. Nef5 {[%emt 0:00:10]} Ne5 {[%emt 0:00:05]} 19. Be3 {[%emt 0:00:11]} Qc7 {[%emt 0:01:05]} 20. Qe2 {[%emt 0:00:20]} Rae8 {[%emt 0:00:06]} 21. Qh5 {[%emt 0:00:02]} N7g6 {[%emt 0:00:03]} 22. Rf1 {[%emt 0:00:08]} b6 {[%emt 0:00:03]} 23. Nxg7 {[%emt 0:00:04]} Qxg7 {[%emt 0:00:05]} 24. Nf5 {[%emt 0:00:09]} Qc7 {[%emt 0:00:03]} 25. Kg2 {[%emt 0:00:21]} Nf3 {[%emt 0:00:02]} 26. Qg4 {[%emt 0:00:31]} Kh8 {[%emt 0:00:02]} 27. Nh6 {[%emt 0:00:08]} Qg7 {[%emt 0:00:06]} 28. Nf5 {[%emt 0:00:05]} Qd7 {[%emt 0:00:00]} 29. Qh5 {[%emt 0:00:13]} Qd3 {[%emt 0:00:03]} 30. Bg4 {[%emt 0:00:09]} Nge5 {[%emt 0:00:04]} 31. Bh6 {[%emt 0:00:10]} Rf7 {[%emt 0:00:00]} 32. Bg7+ {[%emt 0:00:02]} Kg8 {[%emt 0:00:02]} 33. Bxf6 {[%emt 0:00:02]} Qe2+ {[%emt 0:00:07]} 34. Rf2 {[%emt 0:00:02]} Ne1+ {[%emt 0:00:02]} 35. Kh3 {[%emt 0:00:11]} Qxg4+ {[%emt 0:00:02]} 36. Qxg4+ {[%emt 0:00:01]} Nxg4 {[%emt 0:00:01]} 37. Bg5 {[%emt 0:00:05]} Nxf2+ {[%emt 0:00:02]} 0-1